[Event "Titled Tuesday Blitz November 07 Early 2023"]
[White "Liyanage, Ranindu Dilshan"]
[Black "Streltsov, Alexey"]
[WhiteFideId "9915834"]
[BlackFideId "24104434"]
[WhiteElo "2769"]
[BlackElo "2596"]
[Result "1-0"]
[Round "7"]
[TimeControl "180+1"]
[Date "2023.11.07"]
[WhiteClock "0:00:08"]
[BlackClock "0:00:13"]
[Board "71"]

1. c4 {[%clk 0:03:00]}  e6 {[%clk 0:02:58]} 2. Nf3 {[%clk 0:03:00]}  d5 {[%clk 0:02:58]} 3. g3 {[%clk 0:03:00]}  Nf6 {[%clk 0:02:55]} 4. Bg2 {[%clk 0:03:01]}  dxc4 {[%clk 0:02:56]} 5. Qa4+ {[%clk 0:02:59]}  Nbd7 {[%clk 0:02:55]} 6. Qxc4 {[%clk 0:03:00]}  a6 {[%clk 0:02:56]} 7. Qb3 {[%clk 0:02:57]}  c5 {[%clk 0:02:53]} 8. a4 {[%clk 0:02:56]}  Qc7 {[%clk 0:02:50]} 9. O-O {[%clk 0:02:54]}  b6 {[%clk 0:02:49]} 10. d4 {[%clk 0:02:53]}  Bb7 {[%clk 0:02:48]} 11. Bf4 {[%clk 0:02:52]}  Bd6 {[%clk 0:02:48]} 12. Bxd6 {[%clk 0:02:50]}  Qxd6 {[%clk 0:02:49]} 13. Rd1 {[%clk 0:02:50]}  O-O {[%clk 0:02:43]} 14. Nc3 {[%clk 0:02:48]}  Rac8 {[%clk 0:02:31]} 15. Rac1 {[%clk 0:02:37]}  cxd4 {[%clk 0:02:18]} 16. Rxd4 {[%clk 0:02:35]}  Qc5 {[%clk 0:02:17]} 17. Rcd1 {[%clk 0:02:30]}  Ne5 {[%clk 0:01:53]} 18. Nxe5 {[%clk 0:02:20]}  Bxg2 {[%clk 0:01:54]} 19. Kxg2 {[%clk 0:02:18]}  Qxe5 {[%clk 0:01:52]} 20. Qxb6 {[%clk 0:02:19]}  Rb8 {[%clk 0:01:47]} 21. Qxa6 {[%clk 0:02:18]}  Rxb2 {[%clk 0:01:47]} 22. R1d3 {[%clk 0:01:58]}  h5 {[%clk 0:01:41]} 23. h3 {[%clk 0:01:45]}  Rc2 {[%clk 0:01:33]} 24. Qb5 {[%clk 0:01:43]}  Qc7 {[%clk 0:01:22]} 25. Qb3 {[%clk 0:01:26]}  Rc1 {[%clk 0:01:13]} 26. Qb2 {[%clk 0:01:23]}  Qc6+ {[%clk 0:01:11]} 27. f3 {[%clk 0:01:16]}  Re1 {[%clk 0:01:11]} 28. a5 {[%clk 0:01:02]}  Qc5 {[%clk 0:01:09]} 29. a6 {[%clk 0:00:58]}  e5 {[%clk 0:01:09]} 30. Na4 {[%clk 0:00:28]}  Qa7 {[%clk 0:01:06]} 31. Qd2 {[%clk 0:00:27]}  Rb1 {[%clk 0:01:00]} 32. Qc2 {[%clk 0:00:20]}  Ra1 {[%clk 0:00:48]} 33. Rd1 {[%clk 0:00:12]}  exd4 {[%clk 0:00:42]} 34. Rxa1 {[%clk 0:00:12]}  Qxa6 {[%clk 0:00:43]} 35. Qb2 {[%clk 0:00:11]}  Nd5 {[%clk 0:00:42]} 36. Qxd4 {[%clk 0:00:03]}  Qxe2+ {[%clk 0:00:42]} 37. Qf2 {[%clk 0:00:04]}  Ne3+ {[%clk 0:00:42]} 38. Kg1 {[%clk 0:00:05]}  Qd3 {[%clk 0:00:37]} 39. Re1 {[%clk 0:00:05]}  Nf5 {[%clk 0:00:35]} 40. Nc5 {[%clk 0:00:06]}  Qc3 {[%clk 0:00:32]} 41. Ne4 {[%clk 0:00:06]}  h4 {[%clk 0:00:32]} 42. g4 {[%clk 0:00:06]}  Qe5 {[%clk 0:00:29]} 43. gxf5 {[%clk 0:00:04]}  Qxf5 {[%clk 0:00:30]} 44. Qg2 {[%clk 0:00:04]}  g6 {[%clk 0:00:26]} 45. Qg4 {[%clk 0:00:04]}  Qe5 {[%clk 0:00:22]} 46. Qxh4 {[%clk 0:00:05]}  Kg7 {[%clk 0:00:22]} 47. Qg3 {[%clk 0:00:04]}  Qd4+ {[%clk 0:00:21]} 48. Qf2 {[%clk 0:00:04]}  Qe5 {[%clk 0:00:22]} 49. Rb1 {[%clk 0:00:05]}  Rh8 {[%clk 0:00:21]} 50. Qb2 {[%clk 0:00:04]}  Qxb2 {[%clk 0:00:20]} 51. Rxb2 {[%clk 0:00:05]}  Rxh3 {[%clk 0:00:21]} 52. Kg2 {[%clk 0:00:06]}  Rh5 {[%clk 0:00:21]} 53. Ng3 {[%clk 0:00:07]}  Ra5 {[%clk 0:00:21]} 54. f4 {[%clk 0:00:07]}  Ra4 {[%clk 0:00:21]} 55. Rf2 {[%clk 0:00:07]}  f6 {[%clk 0:00:21]} 56. Kf3 {[%clk 0:00:08]}  g5 {[%clk 0:00:21]} 57. f5 {[%clk 0:00:08]}  Ra3+ {[%clk 0:00:19]} 58. Kg2 {[%clk 0:00:08]}  Ra5 {[%clk 0:00:19]} 59. Rd2 {[%clk 0:00:08]}  Ra7 {[%clk 0:00:20]} 60. Kh3 {[%clk 0:00:08]}  Re7 {[%clk 0:00:20]} 61. Kg4 {[%clk 0:00:09]}  Ra7 {[%clk 0:00:21]} 62. Kh5 {[%clk 0:00:09]}  Rc7 {[%clk 0:00:19]} 63. Rd6 {[%clk 0:00:09]}  Re7 {[%clk 0:00:19]} 64. Re6 {[%clk 0:00:08]}  Ra7 {[%clk 0:00:18]} 65. Ne4 {[%clk 0:00:08]}  Rf7 {[%clk 0:00:19]} 66. Nd6 {[%clk 0:00:09]}  Rd7 {[%clk 0:00:18]} 67. Ne8+ {[%clk 0:00:09]}  Kf7 {[%clk 0:00:17]} 68. Nxf6 {[%clk 0:00:09]}  Rd1 {[%clk 0:00:15]} 69. Ng4 {[%clk 0:00:09]}  Rg1 {[%clk 0:00:16]} 70. Kxg5 {[%clk 0:00:09]}  Rf1 {[%clk 0:00:16]} 71. Ra6 {[%clk 0:00:09]}  Re1 {[%clk 0:00:17]} 72. Ra7+ {[%clk 0:00:09]}  Kf8 {[%clk 0:00:18]} 73. Kf6 {[%clk 0:00:09]}  Re8 {[%clk 0:00:18]} 74. Rh7 {[%clk 0:00:06]}  Kg8 {[%clk 0:00:16]} 75. Rh3 {[%clk 0:00:07]}  Ra8 {[%clk 0:00:16]} 76. Kg6 {[%clk 0:00:07]}  Ra4 {[%clk 0:00:15]} 77. Nf6+ {[%clk 0:00:08]}  Kf8 {[%clk 0:00:16]} 78. Rh8+ {[%clk 0:00:08]}  Ke7 {[%clk 0:00:14]} 79. Re8+ {[%clk 0:00:08]}  Kd6 {[%clk 0:00:14]} 80. Re6+ {[%clk 0:00:09]}  Kc5 {[%clk 0:00:14]} 81. Re1 {[%clk 0:00:09]}  Ra1 {[%clk 0:00:13]} 82. Rxa1 {[%clk 0:00:08]} 1-0


[Site "https://www.chess.com"]

[Event "Titled Tuesday Blitz November 07 Early 2023"]
[White "Perez Gormaz, Matias"]
[Black "Vestby-Ellingsen, Mads"]
[WhiteFideId "3406342"]
[BlackFideId "1520857"]
[WhiteElo "2723"]
[BlackElo "2551"]
[Result "1/2-1/2"]
[Round "7"]
[TimeControl "180+1"]
[Date "2023.11.07"]
[WhiteClock "0:00:15"]
[BlackClock "0:00:10"]
[Board "74"]

1. d4 {[%clk 0:03:00]}  Nf6 {[%clk 0:02:57]} 2. Bf4 {[%clk 0:03:01]}  c5 {[%clk 0:02:52]} 3. d5 {[%clk 0:03:00]}  b5 {[%clk 0:02:51]} 4. e4 {[%clk 0:02:36]}  Nxe4 {[%clk 0:02:47]} 5. Qf3 {[%clk 0:02:30]}  Nd6 {[%clk 0:02:44]} 6. Bxd6 {[%clk 0:02:28]}  exd6 {[%clk 0:02:45]} 7. Bxb5 {[%clk 0:02:28]}  Be7 {[%clk 0:02:44]} 8. Ne2 {[%clk 0:02:27]}  O-O {[%clk 0:02:44]} 9. O-O {[%clk 0:02:28]}  Ba6 {[%clk 0:02:41]} 10. a4 {[%clk 0:02:21]}  Bxb5 {[%clk 0:02:17]} 11. axb5 {[%clk 0:02:21]}  a6 {[%clk 0:02:17]} 12. Nbc3 {[%clk 0:02:16]}  Bf6 {[%clk 0:02:11]} 13. Ra4 {[%clk 0:02:09]}  Qb6 {[%clk 0:02:05]} 14. Rfa1 {[%clk 0:02:07]}  Ra7 {[%clk 0:02:04]} 15. g3 {[%clk 0:02:00]}  Rb7 {[%clk 0:02:02]} 16. bxa6 {[%clk 0:01:50]}  Ra7 {[%clk 0:01:59]} 17. Qd3 {[%clk 0:01:48]}  Re8 {[%clk 0:01:50]} 18. Ne4 {[%clk 0:01:28]}  Bxb2 {[%clk 0:01:37]} 19. Rb1 {[%clk 0:01:25]}  Rxa6 {[%clk 0:01:32]} 20. N2c3 {[%clk 0:01:10]}  Rxa4 {[%clk 0:01:15]} 21. Nxa4 {[%clk 0:01:11]}  Qb4 {[%clk 0:01:15]} 22. Nxd6 {[%clk 0:00:59]}  Re1+ {[%clk 0:01:08]} 23. Rxe1 {[%clk 0:00:58]}  Qxe1+ {[%clk 0:01:09]} 24. Kg2 {[%clk 0:00:59]}  Qb4 {[%clk 0:01:01]} 25. Qe2 {[%clk 0:00:27]}  h6 {[%clk 0:01:01]} 26. Qe8+ {[%clk 0:00:21]}  Kh7 {[%clk 0:01:01]} 27. Qe4+ {[%clk 0:00:09]}  Qxe4+ {[%clk 0:01:01]} 28. Nxe4 {[%clk 0:00:10]}  Be5 {[%clk 0:00:55]} 29. Naxc5 {[%clk 0:00:10]}  f5 {[%clk 0:00:51]} 30. Nd3 {[%clk 0:00:11]}  Bd4 {[%clk 0:00:42]} 31. Nd6 {[%clk 0:00:10]}  Kg6 {[%clk 0:00:41]} 32. c4 {[%clk 0:00:07]}  Na6 {[%clk 0:00:40]} 33. Kf3 {[%clk 0:00:06]}  Kf6 {[%clk 0:00:37]} 34. Ne8+ {[%clk 0:00:06]}  Kf7 {[%clk 0:00:36]} 35. Nd6+ {[%clk 0:00:06]}  Kf6 {[%clk 0:00:36]} 36. h4 {[%clk 0:00:06]}  g5 {[%clk 0:00:34]} 37. hxg5+ {[%clk 0:00:03]}  hxg5 {[%clk 0:00:35]} 38. Ke2 {[%clk 0:00:03]}  Bc5 {[%clk 0:00:21]} 39. Nb5 {[%clk 0:00:04]}  Bb6 {[%clk 0:00:19]} 40. Nc3 {[%clk 0:00:04]}  Bd4 {[%clk 0:00:19]} 41. Nb5 {[%clk 0:00:04]}  Bb6 {[%clk 0:00:19]} 42. Nc3 {[%clk 0:00:05]}  Bd4 {[%clk 0:00:20]} 43. Nd1 {[%clk 0:00:05]}  d6 {[%clk 0:00:19]} 44. Ne3 {[%clk 0:00:05]}  Bb6 {[%clk 0:00:17]} 45. Nc2 {[%clk 0:00:05]}  Ba7 {[%clk 0:00:16]} 46. Ncb4 {[%clk 0:00:05]}  Nb8 {[%clk 0:00:17]} 47. Nc6 {[%clk 0:00:05]}  Nxc6 {[%clk 0:00:17]} 48. dxc6 {[%clk 0:00:06]}  Bb6 {[%clk 0:00:18]} 49. Nb4 {[%clk 0:00:06]}  Ke6 {[%clk 0:00:16]} 50. Nd5 {[%clk 0:00:07]}  Bc5 {[%clk 0:00:16]} 51. f3 {[%clk 0:00:07]}  g4 {[%clk 0:00:16]} 52. fxg4 {[%clk 0:00:07]}  fxg4 {[%clk 0:00:16]} 53. c7 {[%clk 0:00:04]}  Kd7 {[%clk 0:00:17]} 54. Kf1 {[%clk 0:00:03]}  Bd4 {[%clk 0:00:14]} 55. Ke2 {[%clk 0:00:03]}  Bc5 {[%clk 0:00:15]} 56. Nf6+ {[%clk 0:00:03]}  Kxc7 {[%clk 0:00:14]} 57. Nxg4 {[%clk 0:00:03]}  Kd7 {[%clk 0:00:15]} 58. Nf6+ {[%clk 0:00:04]}  Ke6 {[%clk 0:00:15]} 59. Nd5 {[%clk 0:00:04]}  Kf5 {[%clk 0:00:13]} 60. Kf3 {[%clk 0:00:05]}  Kg5 {[%clk 0:00:12]} 61. g4 {[%clk 0:00:06]}  Ba7 {[%clk 0:00:11]} 62. Nf4 {[%clk 0:00:05]}  Kf6 {[%clk 0:00:10]} 63. Ke4 {[%clk 0:00:05]}  Kg5 {[%clk 0:00:11]} 64. Kf3 {[%clk 0:00:06]}  Kf6 {[%clk 0:00:11]} 65. Nd5+ {[%clk 0:00:06]}  Kg5 {[%clk 0:00:11]} 66. Nc3 {[%clk 0:00:06]}  Kf6 {[%clk 0:00:09]} 67. Ne4+ {[%clk 0:00:05]}  Ke5 {[%clk 0:00:10]} 68. g5 {[%clk 0:00:04]}  Kf5 {[%clk 0:00:09]} 69. Nxd6+ {[%clk 0:00:02]}  Kxg5 {[%clk 0:00:09]} 70. Ke4 {[%clk 0:00:03]}  Kf6 {[%clk 0:00:08]} 71. Kd5 {[%clk 0:00:04]}  Bg1 {[%clk 0:00:07]} 72. Nc8 {[%clk 0:00:03]}  Kf7 {[%clk 0:00:06]} 73. Nd6+ {[%clk 0:00:03]}  Ke7 {[%clk 0:00:06]} 74. Nf5+ {[%clk 0:00:03]}  Kd7 {[%clk 0:00:06]} 75. Nh6 {[%clk 0:00:03]}  Kc7 {[%clk 0:00:06]} 76. Ng4 {[%clk 0:00:03]}  Ba7 {[%clk 0:00:06]} 77. Nf6 {[%clk 0:00:04]}  Bg1 {[%clk 0:00:07]} 78. Ne4 {[%clk 0:00:05]}  Kb6 {[%clk 0:00:07]} 79. Nc3 {[%clk 0:00:05]}  Kc7 {[%clk 0:00:07]} 80. Nb5+ {[%clk 0:00:05]}  Kb6 {[%clk 0:00:07]} 81. Nc3 {[%clk 0:00:06]}  Bf2 {[%clk 0:00:07]} 82. Ne2 {[%clk 0:00:07]}  Be3 {[%clk 0:00:07]} 83. Ng3 {[%clk 0:00:07]}  Bf2 {[%clk 0:00:06]} 84. Ne4 {[%clk 0:00:08]}  Bg1 {[%clk 0:00:07]} 85. Nd2 {[%clk 0:00:05]}  Be3 {[%clk 0:00:07]} 86. Nb3 {[%clk 0:00:06]}  Bg1 {[%clk 0:00:07]} 87. Ke4 {[%clk 0:00:07]}  Kc6 {[%clk 0:00:07]} 88. Kd3 {[%clk 0:00:07]}  Bf2 {[%clk 0:00:07]} 89. Kc3 {[%clk 0:00:08]}  Bg1 {[%clk 0:00:07]} 90. Kb4 {[%clk 0:00:08]}  Bf2 {[%clk 0:00:07]} 91. Na5+ {[%clk 0:00:08]}  Kb6 {[%clk 0:00:07]} 92. Nb3 {[%clk 0:00:09]}  Be1+ {[%clk 0:00:07]} 93. Ka3 {[%clk 0:00:10]}  Kc6 {[%clk 0:00:07]} 94. Kb2 {[%clk 0:00:10]}  Bf2 {[%clk 0:00:07]} 95. Kc2 {[%clk 0:00:11]}  Bg1 {[%clk 0:00:07]} 96. Kd3 {[%clk 0:00:12]}  Bf2 {[%clk 0:00:08]} 97. Ke4 {[%clk 0:00:13]}  Bg1 {[%clk 0:00:08]} 98. Kf3 {[%clk 0:00:13]}  Ba7 {[%clk 0:00:09]} 99. Ke4 {[%clk 0:00:13]}  Bb6 {[%clk 0:00:09]} 100. Nc1 {[%clk 0:00:11]}  Kc5 {[%clk 0:00:09]} 101. Kd3 {[%clk 0:00:11]}  Kc6 {[%clk 0:00:10]} 102. Kc3 {[%clk 0:00:11]}  Ba5+ {[%clk 0:00:10]} 103. Kd3 {[%clk 0:00:11]}  Bb6 {[%clk 0:00:10]} 104. Nb3 {[%clk 0:00:12]}  Bc7 {[%clk 0:00:10]} 105. Nd4+ {[%clk 0:00:11]}  Kb6 {[%clk 0:00:09]} 106. Nf5 {[%clk 0:00:10]}  Kc6 {[%clk 0:00:08]} 107. Kd4 {[%clk 0:00:09]}  Bb6+ {[%clk 0:00:09]} 108. Kd3 {[%clk 0:00:09]}  Bc5 {[%clk 0:00:09]} 109. Nh4 {[%clk 0:00:09]}  Bg1 {[%clk 0:00:09]} 110. Nf3 {[%clk 0:00:10]}  Ba7 {[%clk 0:00:09]} 111. Ne5+ {[%clk 0:00:11]}  Kd6 {[%clk 0:00:09]} 112. Ke4 {[%clk 0:00:11]}  Kc5 {[%clk 0:00:08]} 113. Kd3 {[%clk 0:00:11]}  Kd6 {[%clk 0:00:08]} 114. Nf3 {[%clk 0:00:12]}  Kc6 {[%clk 0:00:08]} 115. Nd2 {[%clk 0:00:13]}  Bb6 {[%clk 0:00:09]} 116. Kc3 {[%clk 0:00:13]}  Ba5+ {[%clk 0:00:08]} 117. Kd3 {[%clk 0:00:14]}  Bxd2 {[%clk 0:00:09]} 118. Kxd2 {[%clk 0:00:15]}  Kc5 {[%clk 0:00:10]} 119. Kc1 {[%clk 0:00:15]}  Kxc4 {[%clk 0:00:10]} 1/2-1/2


[Site "https://www.chess.com"]

[Event "Titled Tuesday Blitz November 07 Early 2023"]
[White "Shukhman, Anna"]
[Black "Wagner, Dennis"]
[WhiteFideId "54180058"]
[BlackFideId "24650684"]
[WhiteElo "2537"]
[BlackElo "2713"]
[Result "0-1"]
[Round "7"]
[TimeControl "180+1"]
[Date "2023.11.07"]
[WhiteClock "0:00:24"]
[BlackClock "0:00:32"]
[Board "77"]

1. e4 {[%clk 0:03:00]}  c5 {[%clk 0:02:59]} 2. Nf3 {[%clk 0:03:00]}  d6 {[%clk 0:02:59]} 3. d4 {[%clk 0:03:00]}  cxd4 {[%clk 0:03:00]} 4. Nxd4 {[%clk 0:03:01]}  Nf6 {[%clk 0:03:01]} 5. Nc3 {[%clk 0:03:01]}  a6 {[%clk 0:03:01]} 6. h3 {[%clk 0:03:00]}  e5 {[%clk 0:03:01]} 7. Nf3 {[%clk 0:03:01]}  Be7 {[%clk 0:03:01]} 8. g4 {[%clk 0:03:00]}  h6 {[%clk 0:03:00]} 9. Rg1 {[%clk 0:02:49]}  b5 {[%clk 0:02:56]} 10. a3 {[%clk 0:02:45]}  Bb7 {[%clk 0:02:57]} 11. Bd3 {[%clk 0:02:45]}  Nbd7 {[%clk 0:02:56]} 12. g5 {[%clk 0:02:40]}  hxg5 {[%clk 0:02:55]} 13. Nxg5 {[%clk 0:02:41]}  Nc5 {[%clk 0:02:52]} 14. Be3 {[%clk 0:02:39]}  Qd7 {[%clk 0:02:37]} 15. Qe2 {[%clk 0:02:35]}  Nxd3+ {[%clk 0:02:17]} 16. Qxd3 {[%clk 0:02:34]}  d5 {[%clk 0:02:11]} 17. exd5 {[%clk 0:02:01]}  Nxd5 {[%clk 0:02:11]} 18. O-O-O {[%clk 0:01:58]}  Nf6 {[%clk 0:01:31]} 19. Qxd7+ {[%clk 0:01:41]}  Nxd7 {[%clk 0:01:32]} 20. Nxf7 {[%clk 0:01:39]}  Kxf7 {[%clk 0:01:23]} 21. Rxd7 {[%clk 0:01:37]}  Bc6 {[%clk 0:01:24]} 22. Rc7 {[%clk 0:01:12]}  Rhc8 {[%clk 0:01:23]} 23. Rxc8 {[%clk 0:01:11]}  Rxc8 {[%clk 0:01:18]} 24. f4 {[%clk 0:01:10]}  exf4 {[%clk 0:01:07]} 25. Bxf4 {[%clk 0:01:09]}  a5 {[%clk 0:01:02]} 26. Ne2 {[%clk 0:01:08]}  Bf6 {[%clk 0:01:01]} 27. Bg5 {[%clk 0:01:05]}  Be4 {[%clk 0:00:55]} 28. c3 {[%clk 0:01:04]}  b4 {[%clk 0:00:55]} 29. Bxf6 {[%clk 0:01:02]}  gxf6 {[%clk 0:00:55]} 30. axb4 {[%clk 0:00:56]}  axb4 {[%clk 0:00:56]} 31. Kd2 {[%clk 0:00:52]}  f5 {[%clk 0:00:54]} 32. Nf4 {[%clk 0:00:49]}  bxc3+ {[%clk 0:00:53]} 33. bxc3 {[%clk 0:00:49]}  Kf6 {[%clk 0:00:52]} 34. h4 {[%clk 0:00:44]}  Ke5 {[%clk 0:00:52]} 35. Ng6+ {[%clk 0:00:43]}  Kf6 {[%clk 0:00:53]} 36. h5 {[%clk 0:00:43]}  Rd8+ {[%clk 0:00:51]} 37. Ke2 {[%clk 0:00:40]}  Rd3 {[%clk 0:00:48]} 38. Nf4 {[%clk 0:00:38]}  Rxc3 {[%clk 0:00:44]} 39. h6 {[%clk 0:00:38]}  Rc2+ {[%clk 0:00:36]} 40. Ke3 {[%clk 0:00:38]}  Rh2 {[%clk 0:00:37]} 41. Rg6+ {[%clk 0:00:37]}  Kf7 {[%clk 0:00:37]} 42. Rb6 {[%clk 0:00:35]}  Rh4 {[%clk 0:00:33]} 43. Rb7+ {[%clk 0:00:24]}  Bxb7 {[%clk 0:00:32]} 0-1


[Site "https://www.chess.com"]

[Event "Titled Tuesday Blitz November 07 Early 2023"]
[White "Ronka, Erik"]
[Black "MKlose11"]
[WhiteFideId "505080"]
[WhiteElo "2528"]
[BlackElo "2705"]
[Result "0-1"]
[Round "7"]
[TimeControl "180+1"]
[Date "2023.11.07"]
[WhiteClock "0:00:03"]
[BlackClock "0:00:45"]
[Board "79"]

1. e4 {[%clk 0:03:00]}  e6 {[%clk 0:02:54]} 2. d4 {[%clk 0:02:59]}  d5 {[%clk 0:02:53]} 3. Nc3 {[%clk 0:02:58]}  Bb4 {[%clk 0:02:53]} 4. e5 {[%clk 0:02:58]}  Ne7 {[%clk 0:02:53]} 5. a3 {[%clk 0:02:59]}  Bxc3+ {[%clk 0:02:53]} 6. bxc3 {[%clk 0:02:59]}  b6 {[%clk 0:02:54]} 7. Qg4 {[%clk 0:02:58]}  Ng6 {[%clk 0:02:52]} 8. h4 {[%clk 0:02:58]}  h5 {[%clk 0:02:52]} 9. Qd1 {[%clk 0:02:57]}  Ba6 {[%clk 0:02:53]} 10. Bxa6 {[%clk 0:02:48]}  Nxa6 {[%clk 0:02:54]} 11. Bg5 {[%clk 0:02:47]}  Qd7 {[%clk 0:02:53]} 12. Ne2 {[%clk 0:02:46]}  Nb8 {[%clk 0:02:54]} 13. Ng3 {[%clk 0:02:23]}  Qc6 {[%clk 0:02:30]} 14. Qd2 {[%clk 0:02:18]}  Nd7 {[%clk 0:02:28]} 15. f4 {[%clk 0:02:15]}  f6 {[%clk 0:02:26]} 16. f5 {[%clk 0:01:18]}  Ne7 {[%clk 0:02:14]} 17. exf6 {[%clk 0:01:12]}  gxf6 {[%clk 0:02:11]} 18. Be3 {[%clk 0:01:09]}  e5 {[%clk 0:02:04]} 19. O-O {[%clk 0:01:07]}  O-O-O {[%clk 0:02:02]} 20. a4 {[%clk 0:01:07]}  Rdg8 {[%clk 0:02:00]} 21. Qf2 {[%clk 0:01:00]}  Rg4 {[%clk 0:01:57]} 22. a5 {[%clk 0:00:31]}  Rxh4 {[%clk 0:01:53]} 23. axb6 {[%clk 0:00:29]}  axb6 {[%clk 0:01:53]} 24. dxe5 {[%clk 0:00:17]}  Nxe5 {[%clk 0:01:50]} 25. Bd4 {[%clk 0:00:17]}  Nc4 {[%clk 0:01:29]} 26. Rfe1 {[%clk 0:00:16]}  Rh7 {[%clk 0:01:24]} 27. Re6 {[%clk 0:00:15]}  Qd7 {[%clk 0:01:18]} 28. Bxf6 {[%clk 0:00:13]}  Rg4 {[%clk 0:01:05]} 29. Bxe7 {[%clk 0:00:13]}  Rxe7 {[%clk 0:01:06]} 30. Rae1 {[%clk 0:00:13]}  Rf7 {[%clk 0:01:04]} 31. Nxh5 {[%clk 0:00:11]}  Rg5 {[%clk 0:00:52]} 32. Nf6 {[%clk 0:00:10]}  Qb5 {[%clk 0:00:51]} 33. Qf3 {[%clk 0:00:07]}  Qc5+ {[%clk 0:00:47]} 34. Qf2 {[%clk 0:00:07]}  Qxf2+ {[%clk 0:00:47]} 35. Kxf2 {[%clk 0:00:07]}  Rxf5+ {[%clk 0:00:48]} 36. Kg3 {[%clk 0:00:05]}  R5xf6 {[%clk 0:00:49]} 37. Re8+ {[%clk 0:00:04]}  Kb7 {[%clk 0:00:49]} 38. Kh4 {[%clk 0:00:04]}  Nd6 {[%clk 0:00:48]} 39. R8e7 {[%clk 0:00:03]}  Rxe7 {[%clk 0:00:47]} 40. Rxe7 {[%clk 0:00:04]}  Rf2 {[%clk 0:00:45]} 41. Kg5 {[%clk 0:00:03]}  Rxg2+ {[%clk 0:00:45]} 0-1


[Site "https://www.chess.com"]

[Event "Titled Tuesday Blitz November 07 Early 2023"]
[White "ExchangeAB"]
[Black "Mgeladze, Tamaz"]
[BlackFideId "13601202"]
[WhiteElo "2446"]
[BlackElo "2672"]
[Result "1/2-1/2"]
[Round "7"]
[TimeControl "180+1"]
[Date "2023.11.07"]
[WhiteClock "0:01:05"]
[BlackClock "0:00:16"]
[Board "81"]

1. Nf3 {[%clk 0:03:00]}  Nf6 {[%clk 0:02:53]} 2. e3 {[%clk 0:03:01]}  g6 {[%clk 0:02:53]} 3. b3 {[%clk 0:03:01]}  Bg7 {[%clk 0:02:45]} 4. Bb2 {[%clk 0:03:02]}  O-O {[%clk 0:02:45]} 5. Be2 {[%clk 0:03:02]}  c5 {[%clk 0:02:45]} 6. O-O {[%clk 0:03:03]}  Nc6 {[%clk 0:02:46]} 7. d3 {[%clk 0:03:01]}  b5 {[%clk 0:02:44]} 8. c4 {[%clk 0:03:00]}  b4 {[%clk 0:02:45]} 9. d4 {[%clk 0:02:59]}  cxd4 {[%clk 0:02:45]} 10. Nxd4 {[%clk 0:02:59]}  Bb7 {[%clk 0:02:44]} 11. Bf3 {[%clk 0:02:59]}  Rc8 {[%clk 0:02:40]} 12. Nxc6 {[%clk 0:02:58]}  Bxc6 {[%clk 0:02:40]} 13. Nd2 {[%clk 0:02:57]}  a5 {[%clk 0:02:38]} 14. Qc2 {[%clk 0:02:54]}  Qb6 {[%clk 0:02:36]} 15. a4 {[%clk 0:02:48]}  Qb7 {[%clk 0:02:32]} 16. Bxc6 {[%clk 0:02:48]}  dxc6 {[%clk 0:02:28]} 17. Rad1 {[%clk 0:02:47]}  Rfd8 {[%clk 0:02:28]} 18. Bxf6 {[%clk 0:02:42]}  Bxf6 {[%clk 0:02:27]} 19. Ne4 {[%clk 0:02:42]}  Qc7 {[%clk 0:02:22]} 20. Nxf6+ {[%clk 0:02:40]}  exf6 {[%clk 0:02:22]} 21. Rxd8+ {[%clk 0:02:36]}  Rxd8 {[%clk 0:02:22]} 22. Rd1 {[%clk 0:02:37]}  Kg7 {[%clk 0:02:22]} 23. g3 {[%clk 0:02:36]}  Rxd1+ {[%clk 0:02:20]} 24. Qxd1 {[%clk 0:02:35]}  Qe5 {[%clk 0:02:21]} 25. h4 {[%clk 0:02:32]}  h5 {[%clk 0:02:19]} 26. Kf1 {[%clk 0:02:28]}  Qe4 {[%clk 0:02:17]} 27. Ke2 {[%clk 0:02:27]}  c5 {[%clk 0:02:14]} 28. Qd3 {[%clk 0:02:27]}  Qg4+ {[%clk 0:02:14]} 29. Ke1 {[%clk 0:02:26]}  Qf3 {[%clk 0:02:14]} 30. Qe2 {[%clk 0:02:25]}  Qe4 {[%clk 0:02:15]} 31. Qd1 {[%clk 0:02:24]}  Kh6 {[%clk 0:02:07]} 32. Ke2 {[%clk 0:02:23]}  g5 {[%clk 0:02:07]} 33. hxg5+ {[%clk 0:02:18]}  fxg5 {[%clk 0:02:08]} 34. Qd6+ {[%clk 0:02:17]}  Kg7 {[%clk 0:02:07]} 35. Qxc5 {[%clk 0:02:14]}  Qc2+ {[%clk 0:02:03]} 36. Kf1 {[%clk 0:02:14]}  Qxb3 {[%clk 0:01:53]} 37. Qxg5+ {[%clk 0:02:13]}  Kf8 {[%clk 0:01:53]} 38. Qc5+ {[%clk 0:02:11]}  Kg7 {[%clk 0:01:50]} 39. Qxa5 {[%clk 0:02:08]}  Qd3+ {[%clk 0:01:46]} 40. Kg2 {[%clk 0:02:07]}  b3 {[%clk 0:01:44]} 41. Qg5+ {[%clk 0:02:05]}  Qg6 {[%clk 0:01:40]} 42. Qb5 {[%clk 0:02:06]}  Qc2 {[%clk 0:01:34]} 43. Qe5+ {[%clk 0:01:55]}  Kg6 {[%clk 0:01:31]} 44. Qd6+ {[%clk 0:01:53]}  Kg7 {[%clk 0:01:27]} 45. Qe5+ {[%clk 0:01:53]}  Kh7 {[%clk 0:01:26]} 46. Qf6 {[%clk 0:01:47]}  Qg6 {[%clk 0:01:07]} 47. Qb2 {[%clk 0:01:42]}  Qe4+ {[%clk 0:01:03]} 48. Kg1 {[%clk 0:01:40]}  Qc2 {[%clk 0:01:02]} 49. Qf6 {[%clk 0:01:40]}  Qg6 {[%clk 0:00:41]} 50. Qc3 {[%clk 0:01:39]}  Qb1+ {[%clk 0:00:35]} 51. Kh2 {[%clk 0:01:39]}  b2 {[%clk 0:00:35]} 52. Qf6 {[%clk 0:01:37]}  Kg8 {[%clk 0:00:35]} 53. Qd8+ {[%clk 0:01:31]}  Kg7 {[%clk 0:00:35]} 54. Qd4+ {[%clk 0:01:31]}  Kg6 {[%clk 0:00:32]} 55. Qd6+ {[%clk 0:01:22]}  f6 {[%clk 0:00:31]} 56. Qb8 {[%clk 0:01:17]}  Qc1 {[%clk 0:00:29]} 57. Qg8+ {[%clk 0:01:16]}  Kf5 {[%clk 0:00:24]} 58. Qd5+ {[%clk 0:01:16]}  Kg6 {[%clk 0:00:24]} 59. Qg8+ {[%clk 0:01:16]}  Kh6 {[%clk 0:00:24]} 60. Qh8+ {[%clk 0:01:05]}  Kg5 {[%clk 0:00:22]} 61. Qg8+ {[%clk 0:01:05]}  Kf5 {[%clk 0:00:20]} 62. Qd5+ {[%clk 0:01:05]}  Kg6 {[%clk 0:00:16]} 63. Qg8+ {[%clk 0:01:05]} 1/2-1/2


[Site "https://www.chess.com"]